[Event "German Bundesliga 2023-24"]
[Site "Germany"]
[Date "2024.03.16"]
[Round "12.12"]
[White "Gavrilescu, David"]
[Black "Krejci, Jan"]
[Result "0-1"]
[ECO "C45"]
[WhiteElo "2534"]
[BlackElo "2517"]
[Annotator "TA"]
[PlyCount "80"]
[EventDate "2023.10.20"]
[EventType "team-tourn"]
[EventCountry "GER"]
[SourceTitle "playchess.com"]
[Source "ChessBase"]
[SourceQuality "1"]
[TimeControl "40/6000+30:3000+30"]

{[%evp 11,80,0,25,0,24,-25,-18,-27,-33,-32,-39,-54,-53,-45,-26,-20,2,-4,-8,-5,0,0,0,19,19,19,29,0,0,0,-2,-316,-284,-359,-369,-360,-331,-374,-320,-322,-297,-455,-451,-448,-451,-538,-521,-534,-552,-546,-555,-554,-529,-633,-648,-676,-679,-898,-897,-896,-893,-939,-928,-812,-752,-1735,-1582,-29989,-29990,-29990,-29987]} 1. e4 {[%emt 0:00:10]} e5 {[%emt 0:00:04]} 2. Nf3 {[%emt 0:00:18]} Nc6 {[%emt 0:00:04]} 3. d4 {[%emt 0:00:26]} exd4 {[%emt 0:00:05]} 4. Nxd4 {[%emt 0:00:07]} Bc5 {[%emt 0:00:04]} 5. Nb3 {[%emt 0:00:21]} Bb6 {[%emt 0:00:05]} 6. Nc3 {[%emt 0:00:24]} d6 {[%emt 0:00:10]} 7. Bf4 {[%emt 0:00:31]} Be6 {[%emt 0:20:10]} 8. Nd5 {[%emt 0:15:26]} (8. Qd2 $142) 8... Nf6 $11 {[%emt 0:09:59][%cal Bg8f6,Bf6d7,Bd7c5,Bc5d3][%mdl 32]} 9. Nxb6 {[%emt 0:08:44] The position is equal.} axb6 {[%emt 0:00:03]} 10. Nd2 {[%emt 0:00:30]} O-O {[%emt 0:07:31][%cal Od6d5]} 11. Bd3 {[%emt 0:03:06]} Nd7 {[%emt 0:04:18][%cal Od8f6]} 12. c3 {[%emt 0:12:17]} f5 {[%emt 0:10:56]} 13. exf5 {[%emt 0:03:02]} Nc5 {[%emt 0:02:51]} 14. Be2 {[%emt 0:01:58]} Bxf5 {[%emt 0:04:12][%cal Of5h3] White must now prevent ...Bh3!} 15. O-O {[%emt 0:03:33]} Bd3 {[%emt 0:02:28]} 16. Bxd3 {[%emt 0:09:45]} Nxd3 {[%emt 0:00:32]} 17. Bg3 {[%emt 0:00:04]} Kh8 {[%emt 0:04:00]} 18. Nc4 {[%emt 0:03:19]} Nc5 {[%emt 0:03:12]} 19. Qg4 {[%emt 0:05:15]} Qc8 {[%emt 0:03:53]} 20. Qh4 {[%emt 0:05:19]} Qe6 {[%emt 0:01:17][%cal Og7g5] ...g5! would now be deadly.} 21. Rae1 $2 {[%emt 0:10:41][%mdl 8192] [#] Now White is beyond hope.} (21. h3 $11) 21... g5 $1 $19 {[%emt 0:01:53]} 22. Qxg5 {[%emt 0:02:50]} Qxc4 {[%emt 0:00:08]} 23. Qh6 {[%emt 0:03:37]} Qf7 {[%emt 0:04:26][%cal Oc5d3]} 24. b4 {[%emt 0:00:12]} Nd3 {[%emt 0:01:17]} 25. Re4 {[%emt 0:00:05]} Qg6 {[%emt 0:05:21]} (25... Qxa2 26. Qh5) (25... Rxa2 26. Qe3 Nce5 27. Qd4) 26. Qh4 {[%emt 0:01:38]} (26. Qe3 $142 Rfe8 27. Rxe8+ Rxe8 28. Qd2) 26... Rxa2 {[%emt 0:07:38]} 27. Re3 {[%emt 0:02:23]} b5 {[%emt 0:01:47]} 28. f4 {[%emt 0:01:36]} Qf5 {[%emt 0:00:54]} 29. Qh6 {[%emt 0:00:04][%cal Oe3d3] [#]} Nde5 {[%emt 0:03:28]} 30. h3 {[%emt 0:01:08] Dodges Ng4} Rf6 {[%emt 0:06:06]} 31. Qh4 {[%emt 0:01:06]} h5 {[%emt 0:01:35]} 32. Be1 {[%emt 0:02:32]} Ng6 {[%emt 0:01:01][%csl LRf4,LRh4]} 33. Qg3 {[%emt 0:00:01] [#]} Nce5 $1 {[%emt 0:01:38][%cal Rg6f4]} 34. Kh1 {[%emt 0:03:30]} (34. Rf2 Rxf2) 34... h4 {[%emt 0:00:19]} 35. Qh2 {[%emt 0:00:01]} Nc4 {[%emt 0:01:20]} 36. Re8+ {[%emt 0:00:59]} Kh7 {[%emt 0:00:43][%cal Of5d7] aiming for ...Qd7!} 37. Qg1 {[%emt 0:00:17]} Qd5 {[%emt 0:00:59]} (37... Nxf4 $2 38. Bxh4 Rf7 (38... Rxg2 39. Qxg2 Nxg2 40. Rxf5 $17) 39. Bg3 $19) 38. Bf2 {[%emt 0:01:06]} Nxf4 {[%emt 0:00:57]} 39. Bd4 {[%emt 0:00:22]} Rxg2 {[%emt 0:00:22]} (39... Qxg2+ $2 {perishes.} 40. Qxg2 Rxg2 41. Bxf6 $18) 40. Re7+ {[%emt 0:00:40]} Kg6 {[%emt 0:00:20] Weighted Error Value: White=0.42/Black=0.07 (flawless) .  Loses game:     	White=1     	---        Mistake:       	White=2     	---        Inaccurate:     	White=1     	---        OK:         	White=9     	Black=14     Best:        	White=1     	---        Strong:       	---       	Black=1} 0-1

[Event "German Bundesliga 2023-24"]
[Site "Germany"]
[Date "2024.03.16"]
[Round "12.12"]
[White "Bromberger, Stefan"]
[Black "Vrolijk, Liam"]
[Result "0-1"]
[ECO "C45"]
[WhiteElo "2476"]
[BlackElo "2569"]
[Annotator "TA"]
[PlyCount "44"]
[EventDate "2023.10.20"]
[EventType "team-tourn"]
[EventCountry "GER"]
[SourceTitle "playchess.com"]
[Source "ChessBase"]
[SourceQuality "1"]
[TimeControl "40/6000+30:3000+30"]

{[%evp 13,44,-2,-2,-46,-26,-43,-36,-42,-32,-41,-56,-53,-52,-38,-39,-102,-109,-106,-107,-114,-112,-367,-352,-370,-375,-360,-370,-1173,-1173,-1157,-333,-326,-312]} 1. e4 {[%emt 0:00:02]} e5 {[%emt 0:00:11]} 2. Nf3 {[%emt 0:00:06]} Nc6 {[%emt 0:00:06]} 3. d4 {[%emt 0:00:03]} exd4 {[%emt 0:00:07]} 4. Nxd4 {[%emt 0:00:03]} Qf6 {[%emt 0:01:43]} 5. Nb5 {[%emt 0:07:23]} Bc5 {[%emt 0:01:46]} 6. Qe2 {[%emt 0:13:18]} Bb6 {[%emt 0:01:48]} 7. N1c3 {[%emt 0:00:46]} Nge7 {[%emt 0:02:01]} 8. Nd5 {[%emt 0:09:43]} Nxd5 {[%emt 0:06:57]} 9. exd5+ {[%emt 0:00:37]} Kd8 $1 {[%emt 0:15:39] aiming for ...Re8.} 10. h4 {[%emt 0:06:43] [#] Black is slightly better.} (10. dxc6 $2 Re8 11. Be3 Qxb2 $17) 10... h6 {[%emt 0:07:52] Prevents Bg5. White must now prevent ...Re8.} 11. c3 {[%emt 0:24:44]} (11. dxc6 $2 Re8 12. Be3 Qxb2 $19 (12... bxc6 $2 13. Nc3 $18)) 11... Re8 {[%emt 0:08:37]} 12. Be3 {[%emt 0:00:05]} Bxe3 {[%emt 0:01:05]} 13. fxe3 {[%emt 0:00:06]} a6 $1 {[%emt 0:00:24]} 14. Nxc7 {[%emt 0:10:57]} (14. Nd4 $15 Nxd4 15. cxd4) 14... Kxc7 $17 {[%emt 0:00:15]} 15. dxc6 {[%emt 0:00:07]} dxc6 {[%emt 0:01:00]} 16. Qf2 {[%emt 0:00:08]} Qe5 $36 {[%emt 0:04:35][%mdl 2048] Hoping for ...Bg4. Black has strong initiative. Black is much more active.} 17. Qxf7+ $2 {[%emt 0:04:54][%mdl 8192] This costs White the game.} (17. Bc4 $17) 17... Re7 $19 {[%emt 0:00:16]} 18. Qf3 {[%emt 0:00:20] [#]} Bg4 $1 {[%emt 0:03:38][%mdl 512]} 19. Qxg4 {[%emt 0:00:29] Strongly threatening Rh3.} Qxe3+ {[%emt 0:00:14]} 20. Kd1 $2 {[%emt 0:00:52]} (20. Be2 Rf8 (20... Rae8 $2 21. Kf1 $19) 21. Rf1) 20... Qf2 {[%emt 0:00:50][%csl Gf2][%cal Re7e1]} (20... Qe1+ 21. Kc2 Qxa1 22. Qf4+ Kd7 23. g3 Qxa2 24. Bh3+ Ke8 25. Rf1 $16) 21. Bd3 {[%emt 0:03:06]} Rd8 $2 {[%emt 0:01:59]} (21... Qxb2 $2 {too greedy.} 22. Qf4+ Kb6 23. Rb1 $18) (21... Rae8 {( -> ...Re1+)} 22. Kc1 Re1+ 23. Qd1 Rxh1 (23... Rxd1+ $2 24. Rxd1 Kb6 25. Rb1 $19) 24. Qxh1 Re1+ 25. Qxe1 Qxe1+ 26. Kc2 Qxa1) 22. Qf3 {[%emt 0:00:12]} Qxb2 {[%emt 0:04:46] Weighted Error Value: White=0.58/Black=0.27 (precise) .  Loses game:     	White=1     	---        Mistake:       	White=2     	---        OK:         	White=5     	Black=5      Best:        	---       	Black=2      Strong:       	---       	Black=2      Brilliant:      	---       	Black=1} 0-1

[Event "German Bundesliga 2023-24"]
[Site "Germany"]
[Date "2024.03.16"]
[Round "12.12"]
[White "Schulze, Torben"]
[Black "Zilka, Stepan"]
[Result "1/2-1/2"]
[ECO "B31"]
[WhiteElo "2325"]
[BlackElo "2599"]
[Annotator "TA"]
[PlyCount "69"]
[EventDate "2023.10.20"]
[EventType "team-tourn"]
[EventCountry "GER"]
[SourceTitle "playchess.com"]
[Source "ChessBase"]
[SourceQuality "1"]
[TimeControl "40/6000+30:3000+30"]

{[%evp 17,69,30,21,0,2,0,12,6,8,3,18,16,21,12,15,9,10,12,25,18,13,19,10,9,17,6,9,10,6,18,13,7,31,15,14,0,26,28,39,27,43,18,32,0,8,0,23,20,16,16,16,16,18,12]} 1. e4 {[%emt 0:00:19]} c5 {[%emt 0:00:08]} 2. Nf3 {[%emt 0:00:15]} Nc6 {[%emt 0:00:14]} 3. Bb5 {[%emt 0:04:13]} g6 {[%emt 0:00:06]} 4. O-O {[%emt 0:00:06]} Bg7 {[%emt 0:00:04]} 5. c3 {[%emt 0:00:30]} Nf6 {[%emt 0:00:58]} 6. Re1 {[%emt 0:00:06]} O-O {[%emt 0:00:50]} 7. d4 {[%emt 0:00:15]} cxd4 {[%emt 0:01:30]} 8. cxd4 {[%emt 0:00:46]} d5 {[%emt 0:00:18]} 9. e5 {[%emt 0:00:10]} Ne4 {[%emt 0:00:37]} 10. Be3 {[%emt 0:07:47]} Qb6 {[%emt 0:04:29]} 11. Bxc6 {[%emt 0:00:14]} Qxc6 {[%emt 0:03:05]} 12. Nfd2 {[%emt 0:02:06]} Nxd2 {[%emt 0:18:33]} 13. Qxd2 {[%emt 0:01:11]} Be6 {[%emt 0:04:21]} 14. Nc3 {[%emt 0:16:51]} Rac8 {[%emt 0:00:02]} 15. Rac1 {[%emt 0:04:36]} Qd7 {[%emt 0:01:23]} 16. Bh6 {[%emt 0:02:20]} Bxh6 {[%emt 0:02:23]} 17. Qxh6 {[%emt 0:00:24]} Rc4 {[%emt 0:00:11]} 18. Qd2 {[%emt 0:00:36]} Rfc8 {[%emt 0:01:15]} 19. b3 {[%emt 0:02:41]} R4c6 {[%emt 0:02:00]} 20. Ne2 {[%emt 0:01:36]} Qd8 {[%emt 0:07:28]} 21. Rxc6 {[%emt 0:02:20]} Rxc6 {[%emt 0:00:10]} 22. Rc1 {[%emt 0:00:26]} Rxc1+ {[%emt 0:00:38]} 23. Nxc1 $11 {[%emt 0:00:36][%mdl 4096] Endgame. KQB-KQN} Bf5 {[%emt 0:04:44]} 24. f3 {[%emt 0:18:27]} Qb6 {[%emt 0:05:09]} 25. g4 {[%emt 0:02:31]} Bd7 {[%emt 0:01:57]} 26. Ne2 {[%emt 0:06:03][%cal Bc1e2,Be2f4,Bf4g2,Bg2e3][%mdl 32]} Bb5 {[%emt 0:00:38] [#] Strongly threatening ...Bxe2.} 27. Nf4 {[%emt 0:01:43]} Qc6 {[%emt 0:01:01]} 28. Ng2 {[%emt 0:01:26]} b6 {[%emt 0:04:42]} 29. Ne3 {[%emt 0:04:51]} a5 {[%emt 0:00:10]} 30. Qc2 {[%emt 0:09:35]} (30. a4 $5 Ba6 $8 31. Kf2 $11) 30... Qxc2 {[%emt 0:05:41]} 31. Nxc2 {[%emt 0:00:24]} f6 {[%emt 0:00:27]} 32. exf6 {[%emt 0:05:16]} exf6 {[%emt 0:00:10] The position is equal.} 33. Ne3 {[%emt 0:01:35]} Bc6 {[%emt 0:00:12]} 34. f4 {[%emt 0:02:06]} g5 {[%emt 0:04:18]} 35. f5 {[%emt 0:04:43] Weighted Error Value: White=0.06 (flawless) /Black=0.07 (flawless) .  Inaccurate:     	---       	Black=1      OK:         	White=11    	Black=9} 1/2-1/2

[Event "German Bundesliga 2023-24"]
[Site "Germany"]
[Date "2024.03.16"]
[Round "12.13"]
[White "Dautov, Rustem"]
[Black "Pubantz, Jan"]
[Result "1-0"]
[ECO "D12"]
[WhiteElo "2584"]
[BlackElo "2299"]
[Annotator "TA"]
[PlyCount "87"]
[EventDate "2023.10.20"]
[EventType "team-tourn"]
[EventCountry "GER"]
[SourceTitle "playchess.com"]
[Source "ChessBase"]
[SourceQuality "1"]
[TimeControl "40/6000+30:3000+30"]

{[%evp 12,87,29,23,32,16,20,0,3,7,32,25,27,25,27,12,6,0,0,-32,-16,-17,0,0,36,46,59,33,128,113,141,189,176,133,182,184,171,106,102,125,120,113,120,120,133,91,189,206,198,165,191,146,191,218,277,276,636,253,254,177,191,183,207,165,199,191,716,293,6287,6287,29991,29992,29992,29993,29993,29991,29991,29992]} 1. d4 {[%emt 0:00:03]} d5 {[%emt 0:00:03]} 2. c4 {[%emt 0:00:06]} c6 {[%emt 0:00:03]} 3. Nf3 {[%emt 0:00:09]} Nf6 {[%emt 0:00:04]} 4. e3 {[%emt 0:00:09]} Bf5 {[%emt 0:00:13]} 5. Nc3 {[%emt 0:00:12]} e6 {[%emt 0:00:10]} 6. Nh4 {[%emt 0:00:14]} Be4 {[%emt 0:00:20]} 7. f3 {[%emt 0:01:39]} Bg6 {[%emt 0:00:09]} 8. Nxg6 {[%emt 0:01:53]} hxg6 {[%emt 0:00:02]} 9. Qb3 {[%emt 0:01:58]} Qc7 {[%emt 0:00:32] The position is equal.} 10. Bd2 {[%emt 0:01:01]} Be7 {[%emt 0:00:57]} 11. O-O-O {[%emt 0:02:12]} dxc4 {[%emt 0:02:11]} 12. Qxc4 {[%emt 0:08:38]} a5 {[%emt 0:01:41][%cal Ba7a5,Ba5a4,Ba4a3][%mdl 32]} 13. e4 {[%emt 0:11:55]} a4 {[%emt 0:04:58]} 14. e5 {[%emt 0:20:41]} Nfd7 {[%emt 0:17:22]} 15. Ne4 {[%emt 0:12:38]} a3 {[%emt 0:09:11] aiming for ...axb2+.} 16. b3 {[%emt 0:00:11]} Na6 {[%emt 0:07:40]} 17. Kb1 {[%emt 0:01:44]} Rd8 {[%emt 0:05:18]} 18. Qc1 {[%emt 0:07:48]} b5 {[%emt 0:29:58]} 19. h4 {[%emt 0:01:25]} Kf8 {[%emt 0:03:25]} (19... Nb6 $14) 20. Be2 {[%emt 0:04:21]} Kg8 {[%emt 0:06:56][%cal Od7b6]} 21. g4 {[%emt 0:02:24]} Nf8 {[%emt 0:02:52]} 22. Be3 {[%emt 0:09:08]} Nb4 {[%emt 0:02:00]} (22... Qd7 $16 23. Bg5 Bxg5 24. Nxg5 Nb4) 23. Bxb5 $18 {[%emt 0:04:12]} (23. Qxa3 $6 Nd5 24. Qc1 Ra8 $14) 23... Nd5 {[%emt 0:00:35]} 24. Bc4 {[%emt 0:01:18]} (24. Bxc6 $2 Nxe3 (24... Rxh4 $2 25. Bxd5 Qxc1+ 26. Rxc1 $18) 25. Qxe3 Qxc6 $19) ({Better is} 24. Be2 $18) 24... Nxe3 $16 {[%emt 0:01:20]} 25. Qxe3 {[%emt 0:00:03]} Nd7 {[%emt 0:02:40]} 26. f4 {[%emt 0:05:07] White is more active.} Nb6 {[%emt 0:00:45][%cal Ob6c4]} 27. Be2 {[%emt 0:00:10]} Nd5 {[%emt 0:02:59]} 28. Qf3 {[%emt 0:00:08]} Rb8 {[%emt 0:02:44]} (28... f5 $16 29. Nc3 fxg4) 29. h5 $1 $18 {[%emt 0:00:55]} gxh5 {[%emt 0:00:42]} 30. gxh5 {[%emt 0:00:10]} Rh6 {[%emt 0:00:55] [#]} 31. f5 $1 {[%emt 0:01:41][%cal Of5f6] f6! would now be deadly.} exf5 {[%emt 0:00:45] [#]} 32. Ng3 {[%emt 0:00:40]} (32. Qxf5 Ne3 33. Qf4 Nxd1 34. Rxd1 Rf8 $14) 32... Qa5 {[%emt 0:03:53]} 33. Nxf5 {[%emt 0:01:13][%cal Oe2c4] Bc4! is the strong threat.} Nc3+ $2 {[%emt 0:01:13]} (33... Qc3 34. Qxc3 (34. Nxh6+ gxh6 35. Qxc3 Nxc3+ 36. Ka1 Nxe2 $19) (34. Nxe7+ Kh8 $18) 34... Nxc3+ 35. Kc2 Nxe2) 34. Ka1 $2 {[%emt 0:00:46]} (34. Kc2 Nd5 35. Bc4 (35. Nxh6+ gxh6 36. Rhg1+ Bg5 $18)) 34... Nxd1 {[%emt 0:01:52]} 35. Nxh6+ {[%emt 0:01:54]} (35. Nxe7+ $6 Kf8 36. Ng6+ (36. Nxc6 Qd2) 36... Kg8 37. Rxd1 (37. Bxd1 Qd2) 37... fxg6 $18) 35... gxh6 {[%emt 0:00:16]} 36. Rxd1 {[%emt 0:00:10]} (36. Bxd1 Qd2 37. Rg1+ Kh8) 36... Bg5 {[%emt 0:00:58] Black is weak on the light squares} 37. Bc4 $36 {[%emt 0:00:53][%mdl 2048] White is really pushing.} Rb7 {[%emt 0:00:21]} 38. Kb1 {[%emt 0:00:58][%cal Oe5e6] Threatens to win with e6!} (38. Qxc6 $2 {leads to mate.} Qc3+ 39. Kb1 Qb2#) 38... Qb6 $2 {[%emt 0:00:46]} (38... Kg7 39. Kc2 (39. Qxc6 $2 {too greedy.} Qc3 $19) 39... Rc7) 39. Qe4 {[%emt 0:01:18]} (39. e6 $142 fxe6 40. Rf1 (40. Bxe6+ Kg7 $18)) 39... Kg7 {[%emt 0:00:34]} (39... Qb4) 40. e6 {[%emt 0:03:06][%cal Be5e6,Be6f7][%mdl 32]} Qb4 {[%emt 0:00:32] [#]} 41. exf7 $1 {[%emt 0:51:41] White mates.} Qd6 {[%emt 0:05:35]} 42. Qe8 {[%emt 0:00:00]} Rb8 {[%emt 0:00:30]} 43. Qg8+ {[%emt 0:00:00]} Kf6 {[%emt 0:00:02]} 44. Rf1+ {[%emt 0:00:00] Weighted Error Value: White=0.32/Black=0.48.  Mistake:       	White=3     	Black=6      Inaccurate:     	White=2     	Black=3      OK:         	White=14    	Black=9      Best:        	White=1     	Black=2} 1-0

[Event "German Bundesliga 2023-24"]
[Site "Germany"]
[Date "2024.03.16"]
[Round "12.13"]
[White "Polak, Tomas"]
[Black "Meshkovs, Nikita"]
[Result "1/2-1/2"]
[ECO "D37"]
[WhiteElo "2518"]
[BlackElo "2526"]
[Annotator "TA"]
[PlyCount "42"]
[EventDate "2023.10.20"]
[EventType "team-tourn"]
[EventCountry "GER"]
[SourceTitle "playchess.com"]
[Source "ChessBase"]
[SourceQuality "1"]
[TimeControl "40/6000+30:3000+30"]

{[%evp 9,42,11,27,13,26,21,22,14,22,18,20,12,23,20,23,23,19,19,15,12,8,14,15,14,20,21,38,31,36,19,19,17,28,16,14]} 1. d4 {[%emt 0:00:05]} Nf6 {[%emt 0:00:06]} 2. c4 {[%emt 0:00:15]} e6 {[%emt 0:00:06]} 3. Nf3 {[%emt 0:00:27]} d5 {[%emt 0:00:37]} 4. Nc3 {[%emt 0:00:23]} a6 {[%emt 0:00:06]} 5. c5 {[%emt 0:01:22]} Nc6 {[%emt 0:00:15]} 6. Bg5 {[%emt 0:02:52]} Be7 {[%emt 0:00:30]} 7. e3 {[%emt 0:01:08]} h6 {[%emt 0:00:43]} 8. Bh4 {[%emt 0:00:26]} O-O {[%emt 0:05:24]} 9. Bd3 {[%emt 0:16:01]} b6 {[%emt 0:13:06]} 10. cxb6 {[%emt 0:01:03]} cxb6 {[%emt 0:00:02][%cal Bc7b6,Bb6b5,Bb5b4][%mdl 32]} 11. Rc1 {[%emt 0:07:24]} Bb7 {[%emt 0:03:12]} 12. O-O $1 {[%emt 0:00:35]} Nd7 {[%emt 0:12:54]} 13. Bg3 {[%emt 0:08:40]} b5 {[%emt 0:04:02]} 14. Nd2 {[%emt 0:05:41]} Rc8 {[%emt 0:07:14]} 15. a4 {[%emt 0:12:51]} b4 {[%emt 0:07:20]} 16. Ne2 {[%emt 0:00:36]} Qb6 {[%emt 0:04:06]} 17. Nb3 {[%emt 0:09:04]} Na5 {[%emt 0:01:41]} 18. Nxa5 {[%emt 0:00:23]} Qxa5 {[%emt 0:00:09]} 19. b3 {[%emt 0:01:36]} Nf6 {[%emt 0:04:34]} 20. f3 {[%emt 0:05:16]} Nh5 {[%emt 0:09:02]} 21. Bf2 {[%emt 0:01:08]} Bd6 {[%emt 0:00:50] Weighted Error Value: White=0.04 (flawless) /Black=0.05 (flawless) .  OK:         	White=8     	Black=6      Strong:       	White=1     	---} 1/2-1/2

[Event "German Bundesliga 2023-24"]
[Site "Germany"]
[Date "2024.03.16"]
[Round "12.13"]
[White "Beerdsen, Thomas"]
[Black "Kindermann, Stefan"]
[Result "0-1"]
[ECO "C00"]
[WhiteElo "2496"]
[BlackElo "2444"]
[Annotator "TA"]
[PlyCount "74"]
[EventDate "2023.10.20"]
[EventType "team-tourn"]
[EventCountry "GER"]
[SourceTitle "playchess.com"]
[Source "ChessBase"]
[SourceQuality "1"]
[TimeControl "40/6000+30:3000+30"]

{[%evp 13,74,-14,0,-7,1,-37,0,-39,-2,-44,-45,-52,-49,-86,-87,-92,-75,-106,-114,-137,-131,-250,-287,-265,-274,-284,-236,-280,-218,-265,-243,-357,-349,-472,-476,-437,-493,-508,-461,-500,-471,-502,-509,-563,-570,-650,-569,-762,-624,-593,-497,-638,-662,-674,-677,-975,-918,-975,-975,-1687,-1715,-29986,-29987]} 1. e4 {[%emt 0:00:03]} e6 {[%emt 0:00:07]} 2. Nf3 {[%emt 0:00:09]} d5 {[%emt 0:00:14]} 3. e5 {[%emt 0:00:08]} c5 {[%emt 0:00:27]} 4. b4 {[%emt 0:00:17]} cxb4 {[%emt 0:01:19]} 5. a3 {[%emt 0:00:07]} Nc6 {[%emt 0:03:56]} 6. axb4 {[%emt 0:00:20]} Bxb4 {[%emt 0:00:41]} 7. c3 {[%emt 0:00:15]} Bf8 {[%emt 0:12:58]} 8. d4 {[%emt 0:01:14]} Bd7 {[%emt 0:02:00]} 9. Bd3 {[%emt 0:03:06]} h6 {[%emt 0:02:48]} 10. h4 {[%emt 0:10:04] Die Stellung ist ausgeglichen.} Nge7 {[%emt 0:09:43]} 11. Na3 {[%emt 0:08:49]} a6 {[%emt 0:05:06]} 12. h5 {[%emt 0:08:41]} Na5 {[%emt 0:02:37]} 13. g4 {[%emt 0:08:36]} Qc7 {[%emt 0:05:59]} 14. Nb1 {[%emt 0:09:00]} Nc4 {[%emt 0:04:21]} 15. Nbd2 {[%emt 0:03:09]} b5 {[%emt 0:12:08]} 16. Rg1 {[%emt 0:04:32]} Nb6 {[%emt 0:04:52]} 17. g5 {[%emt 0:03:49]} (17. Qc2 $17) 17... Qxc3 $19 {[%emt 0:05:35]} 18. Ra3 {[%emt 0:00:59]} Qc7 {[%emt 0:01:08]} 19. Ra2 {[%emt 0:05:46]} hxg5 {[%emt 0:05:51]} 20. Nxg5 {[%emt 0:02:12]} Nf5 {[%emt 0:00:54]} 21. Ndf3 {[%emt 0:02:12]} Rxh5 {[%emt 0:06:52]} 22. Rc2 {[%emt 0:04:28]} (22. Kf1 {kämpft weiter.}) 22... Nc4 {[%emt 0:00:35]} 23. Nxf7 {[%emt 0:00:52]} Kxf7 {[%emt 0:02:03]} 24. Ng5+ {[%emt 0:00:27] [#]} Rxg5 $1 {[%emt 0:00:09]} 25. Bxg5 {[%emt 0:01:54] Qh5+ ist eine echte Drohung.} Bb4+ {[%emt 0:06:40]} (25... Nxd4 26. Qh5+ Kg8 27. Qh7+ Kf7 28. Bg6#) 26. Kf1 {[%emt 0:00:20]} Rh8 {[%emt 0:00:13] Lässt Qh5+ nicht zu} ({Lieber nicht} 26... Nxd4 27. Qh5+ Kf8 28. Bg6) 27. Qg4 {[%emt 0:03:14]} Rh7 {[%emt 0:06:51]} 28. Re2 {[%emt 0:04:04]} Kg8 {[%emt 0:01:30]} 29. Bf4 {[%emt 0:05:46]} Qc8 {[%emt 0:01:38]} 30. Qg6 {[%emt 0:06:45]} Qf8 {[%emt 0:00:43]} 31. f3 {[%emt 0:02:20]} Qf7 {[%emt 0:00:47] [#] Zielt auf ...Qxg6 ab.} 32. Reg2 {[%emt 0:00:38]} Qxg6 {[%emt 0:01:05]} 33. Rxg6 {[%emt 0:00:05]} Nxd4 {[%emt 0:01:33]} 34. Rf6 {[%emt 0:02:03]} Rh3 {[%emt 0:00:37]} 35. Bh6 {[%emt 0:00:48]} Bf8 {[%emt 0:00:32]} ({Schlechter ist} 35... Rxf3+ 36. Rxf3 Nxf3 37. Rxg7+ Kf8 38. Rxd7+ Ke8 39. Ra7 $11) ({Nicht} 35... Nxe5 36. Rxg7+ Kh8 37. Rh7+ Kg8 38. Rg7+ Kh8 39. Rh7+ Kg8 40. Rg7+ $11) 36. Rfg6 {[%emt 0:03:53]} Rxf3+ {[%emt 0:00:27]} 37. Ke1 {[%emt 0:00:06]} Bb4+ {[%emt 0:01:23] Weiß schien mit der Eröffnung nicht zurechtzukommen.   Gewichteter Fehlerwert: Weiß=0.49/Schwarz=0.28 (präzise) .  Fehler:       	Weiß=2     	---        Ungenau:       	Weiß=6     	Schwarz=2     OK:         	Weiß=6     	Schwarz=9     Bester:       	Weiß=1     	Schwarz=1     Brilliant:      	---       	Schwarz=1} 0-1